[Event "80th ARM-ch 2020"]
[Site "Yerevan"]
[Date "2020.01.18"]
[Round "7.3"]
[White "Hovhannisyan, Robert"]
[Black "Ter-Sahakyan, Samvel"]
[Result "0-1"]
[ECO "B04"]
[WhiteElo "2641"]
[BlackElo "2617"]
[Annotator "ChessBase"]
[PlyCount "126"]
[EventDate "2020.01.12"]
[EventType "tourn"]
[EventCountry "ARM"]
[SourceTitle "playchess.com"]
[Source "ChessBase"]
[SourceQuality "1"]
[TimeControl "40/5400+30:1800+30"]

1. e4 {[%emt 0:00:00]} Nf6 {[%emt 0:00:00]} 2. e5 {[%emt 0:00:00]} Nd5 {[%emt 0:00:00]} 3. d4 {[%emt 0:00:25]} d6 {[%emt 0:00:00]} 4. Nf3 {[%emt 0:00:29]} g6 {[%emt 0:00:08]} 5. Bc4 {[%emt 0:02:42]} Nb6 {[%emt 0:00:10]} 6. Bb3 {[%emt 0:00:28]} Bg7 {[%emt 0:00:12]} 7. O-O {[%emt 0:03:03]} O-O {[%emt 0:00:17]} 8. exd6 {[%emt 0:00:36]} cxd6 {[%emt 0:00:28]} 9. c3 {[%emt 0:03:18]} Qc7 {[%emt 0:10:31]} 10. a4 {[%emt 0:06:08]} Nc6 {[%emt 0:01:47]} 11. Na3 {[%emt 0:10:14]} a6 {[%emt 0:02:20]} 12. d5 {[%emt 0:03:14]} Na5 {[%emt 0:00:40]} 13. Re1 {[%emt 0:06:58]} Nxb3 {[%emt 0:12:14]} 14. Qxb3 {[%emt 0:00:04]} e6 {[%emt 0:01:01]} 15. dxe6 {[%emt 0:04:17]} Bxe6 {[%emt 0:00:07]} 16. Qb4 {[%emt 0:02:15]} Bd5 {[%emt 0:03:37]} 17. Be3 {[%emt 0:08:33]} Nd7 {[%emt 0:00:22]} 18. Ng5 {[%emt 0:05:14]} h6 {[%emt 0:19:52]} 19. Nh3 {[%emt 0:00:08]} Rfe8 {[%emt 0:02:09]} 20. Nf4 {[%emt 0:00:43]} Bc6 {[%emt 0:00:11]} 21. Nc4 {[%emt 0:05:13]} d5 {[%emt 0:08:32]} 22. Nd2 {[%emt 0:07:15]} a5 {[%emt 0:05:53]} 23. Qb3 {[%emt 0:01:04]} Nc5 {[%emt 0:03:20]} 24. Qc2 {[%emt 0:05:37]} b6 {[%emt 0:02:40]} 25. Ne2 {[%emt 0:02:50]} Bd7 {[%emt 0:04:20]} 26. Nd4 {[%emt 0:04:00]} Re7 {[%emt 0:00:08]} 27. N2f3 {[%emt 0:00:19]} Rae8 {[%emt 0:01:50]} 28. h3 {[%emt 0:00:19]} Re4 {[%emt 0:01:20]} 29. Nb5 {[%emt 0:07:35]} Qb8 {[%emt 0:00:36]} 30. Bd4 {[%emt 0:01:52]} Bf5 {[%emt 0:03:50]} 31. Qd1 {[%emt 0:00:51]} Nd3 {[%emt 0:00:28]} 32. Rxe4 {[%emt 0:00:31]} dxe4 {[%emt 0:00:15]} 33. Ne1 {[%emt 0:06:40]} Nxb2 {[%emt 0:01:06]} 34. Qd2 {[%emt 0:00:13]} Nc4 {[%emt 0:02:52]} 35. Qe2 {[%emt 0:00:07]} Ne5 {[%emt 0:01:31]} 36. Rd1 {[%emt 0:00:12]} Be6 {[%emt 0:01:23]} 37. Qxe4 {[%emt 0:02:59]} Bb3 {[%emt 0:02:24]} 38. Rb1 {[%emt 0:00:47]} Bxa4 {[%emt 0:03:02]} 39. Bxe5 {[%emt 0:00:37]} Bxb5 {[%emt 0:00:46]} 40. Bxb8 {[%emt 0:00:00]} Rxe4 {[%emt 0:00:00]} 41. Rxb5 {[%emt 0:02:19]} Rxe1+ {[%emt 0:02:49]} 42. Kh2 {[%emt 0:00:02]} Bxc3 {[%emt 0:15:06]} 43. Rxb6 {[%emt 0:00:38]} Re6 {[%emt 0:00:56]} 44. Rb3 {[%emt 0:02:43]} Bd4 {[%emt 0:00:41]} 45. Bf4 {[%emt 0:08:46]} Ra6 {[%emt 0:03:21]} 46. Rd3 {[%emt 0:06:29]} Bb2 {[%emt 0:03:38]} 47. Rb3 {[%emt 0:01:26]} Bg7 {[%emt 0:00:12]} 48. Rb8+ {[%emt 0:04:37]} Kh7 {[%emt 0:00:09]} 49. Rb7 {[%emt 0:00:03]} g5 {[%emt 0:06:29]} 50. Bc1 {[%emt 0:01:09]} Kg6 {[%emt 0:00:15]} 51. Ba3 {[%emt 0:00:57]} Bd4 {[%emt 0:00:24]} 52. f3 {[%emt 0:03:25]} Be5+ {[%emt 0:02:58]} 53. Kg1 {[%emt 0:00:17]} Bg3 {[%emt 0:00:57]} 54. Kf1 {[%emt 0:02:09]} h5 {[%emt 0:00:14]} 55. Ke2 {[%emt 0:01:04]} h4 {[%emt 0:00:33]} 56. Rd7 {[%emt 0:01:17]} f6 {[%emt 0:00:20]} 57. Kd3 {[%emt 0:00:57]} Kf5 {[%emt 0:00:29]} 58. Rd5+ {[%emt 0:02:16]} Be5 {[%emt 0:00:26]} 59. Rc5 {[%emt 0:00:25]} Kf4 {[%emt 0:01:51]} 60. Ke2 {[%emt 0:00:37]} Kg3 {[%emt 0:01:10]} 61. Kf1 {[%emt 0:00:01]} Rb6 {[%emt 0:01:02]} 62. Rc1 {[%emt 0:00:46]} Rb3 {[%emt 0:00:41]} 63. Ra1 {[%emt 0:00:46]} Bxa1 {[%emt 0:00:31]} 0-1

[Event "80th ARM-ch 2020"]
[Site "Yerevan"]
[Date "2020.01.18"]
[Round "7.4"]
[White "Gharibyan, Mamikon"]
[Black "Martirosyan, Haik M."]
[Result "1/2-1/2"]
[ECO "D45"]
[WhiteElo "2381"]
[BlackElo "2613"]
[Annotator "ChessBase"]
[PlyCount "93"]
[EventDate "2020.01.12"]
[EventType "tourn"]
[EventCountry "ARM"]
[SourceTitle "playchess.com"]
[Source "ChessBase"]
[SourceQuality "1"]
[TimeControl "40/5400+30:1800+30"]

1. Nf3 {[%emt 0:00:09]} Nf6 {[%emt 0:00:06]} 2. c4 {[%emt 0:00:38]} e6 {[%emt 0:00:20]} 3. d4 {[%emt 0:01:56]} d5 {[%emt 0:00:38]} 4. Nc3 {[%emt 0:01:38]} c6 {[%emt 0:00:55]} 5. e3 {[%emt 0:05:05]} a6 {[%emt 0:01:18]} 6. Qc2 {[%emt 0:03:54]} Nbd7 {[%emt 0:02:30]} 7. b3 {[%emt 0:07:19]} Bb4 {[%emt 0:03:27]} 8. a3 {[%emt 0:03:54]} Ba5 {[%emt 0:03:16]} 9. Bb2 {[%emt 0:02:07]} O-O {[%emt 0:03:33]} 10. Bd3 {[%emt 0:00:25]} dxc4 {[%emt 0:06:09]} 11. bxc4 {[%emt 0:06:24]} c5 {[%emt 0:00:19]} 12. O-O {[%emt 0:00:58]} Bc7 {[%emt 0:03:59]} 13. Rad1 {[%emt 0:03:15]} Qe7 {[%emt 0:02:57]} 14. Rfe1 {[%emt 0:03:19]} Rb8 {[%emt 0:03:16]} 15. d5 {[%emt 0:11:49]} e5 {[%emt 0:08:52]} 16. d6 {[%emt 0:10:45]} Bxd6 {[%emt 0:00:10]} 17. Nd5 {[%emt 0:00:15]} Nxd5 {[%emt 0:06:31]} 18. Bxh7+ {[%emt 0:00:10]} Kh8 {[%emt 0:00:05]} 19. Rxd5 {[%emt 0:00:49]} Bc7 {[%emt 0:06:27]} 20. Bf5 {[%emt 0:12:57]} Nf6 {[%emt 0:03:50]} 21. Rdd1 {[%emt 0:00:33]} Re8 {[%emt 0:07:13]} 22. a4 {[%emt 0:04:38]} Kg8 {[%emt 0:04:55]} 23. h3 {[%emt 0:04:35]} Bxf5 {[%emt 0:07:23]} 24. Qxf5 {[%emt 0:00:07]} g6 {[%emt 0:00:08]} 25. Qc2 {[%emt 0:00:38]} e4 {[%emt 0:03:05]} 26. Nd2 {[%emt 0:05:46]} Be5 {[%emt 0:02:12]} 27. Nb1 {[%emt 0:02:38]} Rbd8 {[%emt 0:04:43]} 28. Qb3 {[%emt 0:01:30]} Bxb2 {[%emt 0:03:44]} 29. Qxb2 {[%emt 0:00:07]} Qe6 {[%emt 0:01:00]} 30. Qxb7 {[%emt 0:02:23]} Rb8 {[%emt 0:02:32]} 31. Qc7 {[%emt 0:01:00]} Qxc4 {[%emt 0:01:18]} 32. Rc1 {[%emt 0:00:40]} Qxa4 {[%emt 0:00:19]} 33. Qxc5 {[%emt 0:00:18]} Qa2 {[%emt 0:03:00]} 34. Nc3 {[%emt 0:00:43]} Qe6 {[%emt 0:00:06]} 35. Red1 {[%emt 0:00:43]} Rec8 {[%emt 0:01:11]} 36. Qa5 {[%emt 0:01:04]} Kg7 {[%emt 0:02:24]} 37. Ne2 {[%emt 0:01:11]} Rxc1 {[%emt 0:00:59]} 38. Rxc1 {[%emt 0:00:01]} Rb2 {[%emt 0:00:11]} 39. Nd4 {[%emt 0:00:31]} Qa2 {[%emt 0:00:39]} 40. Qg5 {[%emt 0:00:00]} Qd5 {[%emt 0:00:00]} 41. Qf4 {[%emt 0:04:02]} Nd7 {[%emt 0:09:38]} 42. Qc7 {[%emt 0:03:54]} Qb7 {[%emt 0:03:10]} 43. Qd8 {[%emt 0:07:05]} Rb1 {[%emt 0:01:48]} 44. Nf5+ {[%emt 0:04:39]} gxf5 {[%emt 0:02:25]} 45. Qg5+ {[%emt 0:00:07]} Kh7 {[%emt 0:01:06]} 46. Qh5+ {[%emt 0:00:18]} Kg7 {[%emt 0:00:11]} 47. Qg5+ {[%emt 0:00:04]} 1/2-1/2

[Event "80th ARM-ch 2020"]
[Site "Yerevan"]
[Date "2020.01.18"]
[Round "7.5"]
[White "Andriasian, Zaven"]
[Black "Gabuzyan, Hovhannes"]
[Result "1-0"]
[ECO "B90"]
[WhiteElo "2611"]
[BlackElo "2585"]
[Annotator "ChessBase"]
[PlyCount "95"]
[EventDate "2020.01.12"]
[EventType "tourn"]
[EventCountry "ARM"]
[SourceTitle "playchess.com"]
[Source "ChessBase"]
[SourceQuality "1"]
[TimeControl "40/5400+30:1800+30"]

1. e4 {[%emt 0:00:00]} c5 {[%emt 0:00:00]} 2. Nf3 {[%emt 0:00:00]} d6 {[%emt 0:00:00]} 3. d4 {[%emt 0:00:00]} cxd4 {[%emt 0:00:00]} 4. Nxd4 {[%emt 0:00:01]} Nf6 {[%emt 0:00:00]} 5. Nc3 {[%emt 0:00:12]} a6 {[%emt 0:00:03]} 6. h3 {[%emt 0:00:10]} e5 {[%emt 0:00:10]} 7. Nb3 {[%emt 0:00:54]} Be7 {[%emt 0:00:08]} 8. g4 {[%emt 0:00:15]} h6 {[%emt 0:01:02]} 9. Be3 {[%emt 0:00:12]} Be6 {[%emt 0:00:05]} 10. Qf3 {[%emt 0:00:11]} Nbd7 {[%emt 0:00:05]} 11. O-O-O {[%emt 0:00:19]} Rc8 {[%emt 0:00:03]} 12. Nd5 {[%emt 0:00:26]} Nf8 {[%emt 0:00:07]} 13. Kb1 {[%emt 0:01:49]} Ng6 {[%emt 0:01:38]} 14. Rg1 {[%emt 0:00:38]} Nh7 {[%emt 0:02:37]} 15. Be2 {[%emt 0:09:05]} O-O {[%emt 0:01:23]} 16. Rd2 {[%emt 0:04:13]} Bg5 {[%emt 0:02:47]} 17. Rgd1 {[%emt 0:02:32]} Re8 {[%emt 0:07:05]} 18. c3 {[%emt 0:17:46]} Bxd5 {[%emt 0:13:29]} 19. exd5 {[%emt 0:05:50]} Bf4 {[%emt 0:01:27]} 20. Bf1 {[%emt 0:02:41]} Qh4 {[%emt 0:01:21]} 21. a3 {[%emt 0:02:49]} Ng5 {[%emt 0:02:20]} 22. Qg2 {[%emt 0:00:13]} h5 {[%emt 0:00:46]} 23. Rc2 {[%emt 0:03:12]} Re7 {[%emt 0:02:18]} 24. Bb6 {[%emt 0:03:12]} hxg4 {[%emt 0:03:40]} 25. hxg4 {[%emt 0:00:49]} Bh2 {[%emt 0:01:18]} 26. Be2 {[%emt 0:13:56]} Nf4 {[%emt 0:00:14]} 27. Qf1 {[%emt 0:00:11]} Ne4 {[%emt 0:02:02]} 28. c4 {[%emt 0:03:21]} Qh7 {[%emt 0:00:03]} 29. Bd3 {[%emt 0:01:50]} Nxd3 {[%emt 0:00:09]} 30. Qxd3 {[%emt 0:01:55]} Bf4 {[%emt 0:00:51]} 31. f3 {[%emt 0:04:12]} Nc5 {[%emt 0:00:50]} 32. Nxc5 {[%emt 0:07:22]} dxc5 {[%emt 0:00:02]} 33. Qxh7+ {[%emt 0:00:28]} Kxh7 {[%emt 0:00:02]} 34. b4 {[%emt 0:00:35]} cxb4 {[%emt 0:02:36]} 35. axb4 {[%emt 0:00:19]} Rd7 {[%emt 0:00:03]} 36. Kb2 {[%emt 0:01:10]} Bg5 {[%emt 0:00:05]} 37. Kb3 {[%emt 0:01:09]} Bd8 {[%emt 0:00:06]} 38. Rh2+ {[%emt 0:02:59]} Kg6 {[%emt 0:01:26]} 39. Rh8 {[%emt 0:01:16]} Kg5 {[%emt 0:00:18]} 40. Be3+ {[%emt 0:00:00]} Kf6 {[%emt 0:00:00]} 41. c5 {[%emt 0:04:41]} Rcc7 {[%emt 0:00:14]} 42. Re8 {[%emt 0:01:14]} b6 {[%emt 0:00:08]} 43. d6 {[%emt 0:02:55]} Rc8 {[%emt 0:00:03]} 44. Kc4 {[%emt 0:05:21]} a5 {[%emt 0:00:05]} 45. Kd5 {[%emt 0:01:23]} bxc5 {[%emt 0:00:16]} 46. bxc5 {[%emt 0:00:25]} Rb7 {[%emt 0:00:02]} 47. Rxe5 {[%emt 0:02:05]} Kg6 {[%emt 0:00:03]} 48. Re8 {[%emt 0:00:43]} 1-0

[Event "80th ARM-ch 2020"]
[Site "Yerevan"]
[Date "2020.01.19"]
[Round "8.1"]
[White "Pashikian, Arman"]
[Black "Andriasian, Zaven"]
[Result "1/2-1/2"]
[ECO "D14"]
[WhiteElo "2605"]
[BlackElo "2611"]
[Annotator "ChessBase"]
[PlyCount "21"]
[EventDate "2020.01.12"]
[EventType "tourn"]
[EventCountry "ARM"]
[SourceTitle "playchess.com"]
[Source "ChessBase"]
[SourceQuality "1"]
[TimeControl "40/5400+30:1800+30"]

1. d4 {[%emt 0:00:00]} d5 {[%emt 0:00:00]} 2. c4 {[%emt 0:00:00]} c6 {[%emt 0:00:00]} 3. Nc3 {[%emt 0:00:00]} Nf6 {[%emt 0:00:00]} 4. cxd5 {[%emt 0:00:00]} cxd5 {[%emt 0:00:00]} 5. Bf4 {[%emt 0:00:00]} Nc6 {[%emt 0:00:00]} 6. Nf3 {[%emt 0:00:00]} Bf5 {[%emt 0:00:00]} 7. e3 {[%emt 0:00:00]} e6 {[%emt 0:00:01]} 8. Bd3 {[%emt 0:00:00]} Bxd3 {[%emt 0:00:07]} 9. Qxd3 {[%emt 0:00:01]} Bd6 {[%emt 0:00:01]} 10. Bxd6 {[%emt 0:00:08]} Qxd6 {[%emt 0:00:05]} 11. O-O {[%emt 0:00:03]} 1/2-1/2

[Event "80th ARM-ch 2020"]
[Site "Yerevan"]
[Date "2020.01.19"]
[Round "8.2"]
[White "Martirosyan, Haik M."]
[Black "Sargsyan, Shant"]
[Result "1-0"]
[ECO "C50"]
[WhiteElo "2613"]
[BlackElo "2601"]
[Annotator "ChessBase"]
[PlyCount "75"]
[EventDate "2020.01.12"]
[EventType "tourn"]
[EventCountry "ARM"]
[SourceTitle "playchess.com"]
[Source "ChessBase"]
[SourceQuality "1"]
[TimeControl "40/5400+30:1800+30"]

1. e4 {[%emt 0:00:00]} e5 {[%emt 0:00:55]} 2. Nf3 {[%emt 0:00:00]} Nc6 {[%emt 0:00:25]} 3. Bc4 {[%emt 0:00:06]} Bc5 {[%emt 0:01:04]} 4. d3 {[%emt 0:00:24]} Nf6 {[%emt 0:00:34]} 5. Bg5 {[%emt 0:00:36]} h6 {[%emt 0:00:44]} 6. Bh4 {[%emt 0:00:06]} Be7 {[%emt 0:00:40]} 7. Bg3 {[%emt 0:01:09]} d6 {[%emt 0:01:31]} 8. a3 {[%emt 0:00:31]} O-O {[%emt 0:01:45]} 9. h3 {[%emt 0:01:15]} Re8 {[%emt 0:03:36]} 10. O-O {[%emt 0:01:44]} Bf8 {[%emt 0:00:34]} 11. Re1 {[%emt 0:02:11]} g6 {[%emt 0:08:17]} 12. Nc3 {[%emt 0:12:26]} Bg7 {[%emt 0:02:29]} 13. Bh2 {[%emt 0:00:55]} Be6 {[%emt 0:03:51]} 14. Bxe6 {[%emt 0:09:30]} Rxe6 {[%emt 0:00:25]} 15. Nd5 {[%emt 0:00:05]} Re8 {[%emt 0:09:32]} 16. c4 {[%emt 0:00:23]} Nxd5 {[%emt 0:03:16]} 17. cxd5 {[%emt 0:01:28]} Ne7 {[%emt 0:00:37]} 18. b4 {[%emt 0:07:56]} Qd7 {[%emt 0:02:11]} 19. Rb1 {[%emt 0:01:19]} b5 {[%emt 0:03:18]} 20. d4 {[%emt 0:09:38]} exd4 {[%emt 0:02:13]} 21. Qd3 {[%emt 0:00:33]} a6 {[%emt 0:13:55]} 22. Nxd4 {[%emt 0:01:42]} Rac8 {[%emt 0:00:08]} 23. Nf3 {[%emt 0:08:46]} Rcd8 {[%emt 0:10:30]} 24. Rbd1 {[%emt 0:02:18]} c6 {[%emt 0:02:08]} 25. dxc6 {[%emt 0:05:09]} Qxc6 {[%emt 0:00:46]} 26. e5 {[%emt 0:01:25]} d5 {[%emt 0:05:54]} 27. Rc1 {[%emt 0:02:15]} Qe6 {[%emt 0:05:43]} 28. Nd4 {[%emt 0:01:59]} Qb6 {[%emt 0:00:11]} 29. Rc5 {[%emt 0:00:48]} Nf5 {[%emt 0:02:15]} 30. Nxf5 {[%emt 0:02:56]} gxf5 {[%emt 0:00:02]} 31. Qxf5 {[%emt 0:00:25]} d4 {[%emt 0:01:08]} 32. Rd1 {[%emt 0:01:58]} Re6 {[%emt 0:04:18]} 33. Bg3 {[%emt 0:05:38]} Rc6 {[%emt 0:05:44]} 34. Bh4 {[%emt 0:02:12]} Re8 {[%emt 0:00:14]} 35. Qd7 {[%emt 0:03:02]} Rce6 {[%emt 0:02:03]} 36. Rc7 {[%emt 0:00:53]} Rf8 {[%emt 0:00:11]} 37. f4 {[%emt 0:01:22]} Kh7 {[%emt 0:01:50]} 38. Be7 {[%emt 0:01:12]} 1-0